bitfinex/quotes_SOLUSD_20240902
["timestamp","ask_amount","ask_price","bid_price","bid_amount"]
[1725271204491,28.00557997,132.19,132.14,7.5673]
[1725271204702,28.00557997,132.21,132.13,18.9195]
[1725271204997,28.00557997,132.21,132.15,7.5671]
[1725271206186,28.00557997,132.21,132.16,7.5664]
[1725271206501,7.5634,132.22,132.17,7.5655]
[1725271206502,28.00557997,132.22,132.17,7.5655]
[1725271206708,28.00557997,132.18,132.11,18.9234]
[1725271207003,7.5661,132.17,132.11,18.9234]
[1725271207179,35.57257997,132.16,132.1,6.1163]
[1725271207379,35.57257997,132.16,132.08,26.4987]
[1725271207380,7.5673,132.15,132.08,26.4987]
[1725271207632,7.5673,132.15,132.09,7.5705]
[1725271208106,7.5673,132.15,132.08,18.9276]
[1725271208107,28.00557997,132.14,132.08,26.4987]
[1725271208301,28.00557997,132.14,132.06,6.3152]
[1725271208611,28.00557997,132.14,132.08,7.5711]
[1725271208806,7.5666,132.16,132.08,18.9272]
[1725271209507,28.00557997,132.14,132.08,18.9272]
[1725271209693,7.5666,132.16,132.09,7.5703]
[1725271210012,7.5669,132.16,132.08,18.9272]
[1725271210190,81.00177219,132.18,132.08,18.9272]
[1725271210393,28.00557997,132.16,132.08,18.9272]
[1725271210697,35.57227997,132.16,132.1,7.57]
[1725271211080,16.2357,132.18,132.11,18.923]
[1725271211280,64.76607219,132.21,132.08,37.8536]
[1725271211508,23.1508,132.22,132.16,7.5664]
[1725271211707,28.00557997,132.2,132.14,7.5671]
[1725271212290,35.56997997,132.2,132.13,18.9194]
[1725271212613,7.565,132.19,132.13,18.9194]
[1725271212789,35.56987997,132.2,132.13,26.4877]
[1725271212991,28.00557997,132.18,132.13,26.4872]
[1725271213592,7.5647,132.2,132.16,7.5665]
[1725271213593,28.00557997,132.2,132.16,7.5665]
[1725271213800,23.1508,132.22,132.13,18.9194]
[1725271214106,6.6528,132.23,132.16,7.5665]
[1725271214304,28.00557997,132.21,132.16,7.5665]
[1725271214513,7.5631,132.22,132.16,7.5665]
[1725271214803,7.5632,132.22,132.15,7.5671]
[1725271215002,28.00557997,132.21,132.15,7.5671]
[1725271215411,28.00557997,132.21,132.14,6.355]
[1725271215719,28.00557997,132.21,132.13,18.9194]
[1725271215720,28.00557997,132.17,132.1,6.2193]
[1725271216011,28.00557997,132.17,132.11,7.5694]
[1725271216012,7.566,132.17,132.11,7.5694]
[1725271216513,35.57157997,132.17,132.11,7.5694]
[1725271216685,28.00557997,132.19,132.12,7.5688]
[1725271216883,35.56977997,132.21,132.14,7.5674]
[1725271217084,28.00557997,132.18,132.13,26.4879]
[1725271217301,28.00557997,132.18,132.13,18.9197]
[1725271217510,35.57147997,132.18,132.11,7.5693]
[1725271217804,45.0,132.17,132.11,7.5693]
[1725271218310,35.57147997,132.18,132.11,7.5693]
[1725271218494,7.5648,132.19,132.12,7.5688]
[1725271219013,35.56987997,132.2,132.14,7.5675]
[1725271219213,7.5638,132.21,132.14,7.5675]
[1725271219514,35.56867997,132.22,132.14,18.918]
[1725271219704,45.0,132.21,132.14,18.918]
[1725271220101,45.0,132.21,132.15,1.51175973]
[1725271220303,28.00557997,132.2,132.14,18.918]
[1725271220510,7.5653,132.19,132.11,18.9235]
[1725271220704,35.56987997,132.2,132.11,18.9235]
[1725271220903,28.00557997,132.22,132.15,7.5671]
[1725271221095,28.00557997,132.2,132.15,7.5671]
[1725271221289,28.00557997,132.22,132.15,18.9169]
[1725271221526,6.6528,132.23,132.15,18.9169]
[1725271221901,7.5631,132.22,132.16,7.566]
[1725271222209,7.5631,132.22,132.15,18.9169]
[1725271222210,35.56807997,132.24,132.18,7.5652]
[1725271222517,28.00557997,132.22,132.16,7.5661]
[1725271223022,7.5627,132.23,132.17,7.566]
[1725271223720,28.00557997,132.24,132.18,7.5653]
[1725271224414,35.56807997,132.24,132.17,7.5659]
[1725271224617,7.5629,132.23,132.17,7.5659]
[1725271224925,35.56767997,132.24,132.17,7.5659]
[1725271225142,28.00557997,132.22,132.17,7.5659]
[1725271225433,28.00557997,132.22,132.16,7.5665]
[1725271225634,17.1770374,132.26,132.13,7.5678]
[1725271225635,28.00557997,132.2,132.13,7.5678]
[1725271225927,35.56987997,132.2,132.14,7.5677]
[1725271226107,7.5648,132.19,132.14,7.5677]
[1725271227038,28.00557997,132.18,132.12,26.4903]
[1725271227212,7.5661,132.17,132.12,18.922]
[1725271227837,35.57107997,132.18,132.12,26.4908]
[1725271228019,45.0,132.17,132.12,26.4908]
[1725271229406,6.4808,132.21,132.14,18.9183]
[1725271229407,28.00557997,132.2,132.14,18.9183]
[1725271229611,28.00557997,132.18,132.14,18.9183]
[1725271230524,52.5648,132.19,132.14,26.4859]
[1725271230726,35.57117997,132.18,132.11,18.9233]
[1725271231033,7.5669,132.16,132.11,18.9233]
[1725271231227,7.5661,132.17,132.11,26.4921]
[1725271231738,28.00557997,132.16,132.11,26.4921]
[1725271231911,35.57097997,132.18,132.12,7.5687]
[1725271232917,28.00557997,132.16,132.08,18.9273]
[1725271233137,28.00557997,132.14,132.09,7.5704]
[1725271233334,7.5683,132.13,132.08,18.9273]
[1725271233567,35.57447997,132.12,132.06,7.5722]
[1725271233842,73.00557997,132.12,132.06,7.5721]
[1725271234539,45.0,132.12,132.06,7.5721]
[1725271234742,45.0,132.12,132.05,18.932]
[1725271235036,73.00557997,132.12,132.05,18.932]
[1725271235214,80.57437997,132.12,132.06,7.5717]
[1725271235643,73.00557997,132.12,132.05,26.5048]
[1725271235937,28.00557997,132.09,132.02,18.9361]
[1725271236433,45.0,132.08,132.02,18.9361]
[1725271236833,28.00557997,132.09,132.02,18.9361]
[1725271237214,28.00557997,132.09,131.97,46.09456898]
[1725271237215,28.00557997,132.06,131.98,56.8226]
[1725271238013,6.3156,132.09,131.97,7.5774]
[1725271238014,35.57967997,132.03,131.97,7.5774]
[1725271238218,35.57967997,132.03,131.94,18.9466]
[1725271238449,35.57967997,132.03,131.96,7.5774]
[1725271238938,73.00557997,132.05,131.98,7.5768]
[1725271239142,35.57967997,132.03,131.97,18.9434]
[1725271239331,28.00557997,132.01,131.93,18.948]
[1725271239923,34.54747997,132.01,131.93,18.948]
[1725271240449,16.2824,132.02,131.97,7.5773]
[1725271240819,23.857,132.02,131.96,26.5231]
[1725271241444,23.857,132.02,131.92,18.95]
[1725271241445,35.58247997,131.98,131.92,18.95]
[1725271242028,7.5774,131.97,131.92,18.95]
[1725271242222,7.5774,131.97,131.88,15.59907676]
[1725271242223,28.00557997,131.95,131.89,7.5815]
[1725271242417,35.58417997,131.95,131.88,26.5379]
[1725271242641,35.58417997,131.95,131.89,7.582]
[1725271244957,43.75947997,131.93,131.85,20.369319]
[1725271245131,51.33977997,131.93,131.86,7.5832]
[1725271245329,15.7539,131.93,131.88,18.9564]
[1725271245636,15.7539,131.93,131.85,1.408519]
[1725271245637,15.7539,131.97,131.91,18.952]
[1725271245857,15.7539,131.97,131.94,7.5792]
[1725271246147,15.7539,131.97,131.93,7.5797]
[1725271246344,15.7539,131.97,131.92,7.5803]
[1725271246345,43.75947997,131.97,131.92,7.5803]
[1725271246652,15.7539,131.97,131.92,7.5803]
[1725271247030,28.00557997,131.95,131.87,18.9573]
[1725271247340,28.00557997,131.95,131.88,7.5823]
[1725271247341,35.58417997,131.95,131.88,7.5823]
[1725271247636,43.75947997,131.97,131.87,18.9573]
[1725271247840,7.578,131.96,131.9,7.5812]
[1725271248046,28.00557997,131.95,131.88,7.582]
[1725271248241,35.58437997,131.95,131.88,7.582]
[1725271248429,28.00557997,131.93,131.88,7.582]
[1725271249055,52.51439222,131.97,131.85,1.408519]
[1725271249056,28.00557997,131.91,131.85,1.408519]
[1725271249226,34.00617997,131.91,131.85,1.408519]
[1725271249425,34.00617997,131.91,131.85,8.992819]
[1725271249655,34.00617997,131.91,131.85,1.408519]
[1725271249824,28.00557997,131.89,131.85,1.408519]
[1725271250028,44.13227997,131.89,131.85,1.408519]
[1725271250254,16.1267,131.89,131.85,1.408519]
[1725271250635,16.1267,131.89,131.85,8.992819]
[1725271250960,6.0006,131.91,131.86,7.5834]
[1725271251125,44.13227997,131.93,131.86,1.51420166]
[1725271251466,43.88647997,131.97,131.87,1.51430549]
[1725271251623,43.88647997,131.97,131.93,7.5796]
[1725271251624,15.8809,131.97,131.93,7.5796]
[1725271251829,15.8809,131.97,131.92,7.5803]
[1725271253331,28.00557997,131.96,131.9,26.5351]
[1725271253539,35.58377997,131.96,131.9,26.5351]
[1725271253753,28.00557997,131.94,131.86,18.958]
[1725271254055,28.00557997,131.94,131.88,7.5826]
[1725271254633,28.00557997,131.94,131.86,18.958]
[1725271254634,7.5788,131.95,131.89,7.582]
[1725271255037,35.58477997,131.94,131.88,7.5826]
[1725271256030,28.00557997,131.92,131.87,7.5831]
[1725271256933,35.58477997,131.94,131.87,7.5831]
[1725271257442,7.5786,131.95,131.88,7.5823]
[1725271257668,35.58357997,131.96,131.89,7.5815]
[1725271257953,15.8809,131.97,131.88,37.9119]
[1725271258134,15.8809,131.97,131.89,1.51583447]
[1725271258334,15.8809,131.97,131.9,1.51571954]
[1725271258658,28.00557997,132.0,131.9,1.51571954]
[1725271258849,28.00557997,132.0,131.92,18.9496]
[1725271259057,28.00557997,131.98,131.92,18.9496]
[1725271259432,28.00557997,131.98,131.92,26.5298]
[1725271259652,28.00557997,132.0,131.92,18.9496]
[1725271259858,21.4719,132.01,131.96,7.5779]
[1725271260063,21.4719,132.01,131.94,18.9467]
[1725271260235,21.4719,132.01,131.95,7.5785]
[1725271260639,28.00557997,132.0,131.94,26.5259]
[1725271260846,35.58147997,132.0,131.94,18.9467]
[1725271261047,28.00557997,132.0,131.94,26.5254]
[1725271261355,28.00557997,132.0,131.94,18.9467]
[1725271261549,28.00557997,131.98,131.93,7.5797]
[1725271261933,28.00557997,131.98,131.91,18.9519]
[1725271262128,35.58377997,131.96,131.89,7.5815]
[1725271262329,35.58377997,131.96,131.88,18.9565]
[1725271262330,43.40117997,131.94,131.88,18.9565]
[1725271262558,6.5926,131.93,131.85,20.369119]
[1725271262835,6.5926,131.93,131.87,7.5831]
[1725271263058,28.00557997,131.92,131.85,20.369119]
[1725271263950,28.00557997,131.89,131.85,1.408519]
[1725271264153,35.58777997,131.89,131.85,1.408519]
[1725271264463,28.00557997,131.89,131.85,1.408519]
[1725271264643,35.58667997,131.91,131.85,1.408519]
[1725271264845,43.35309222,131.93,131.85,1.408519]
[1725271264846,34.59817997,131.93,131.85,1.408519]
[1725271265149,28.00557997,131.91,131.85,1.408519]
[1725271265357,28.00557997,131.91,131.85,8.992819]
[1725271265657,71.35867219,131.93,131.85,8.992819]
[1725271266058,28.00557997,131.91,131.85,7.5843]
[1725271266260,28.00557997,131.91,131.84,7.5848]
[1725271266470,43.35309222,131.93,131.83,26.548]
[1725271266471,28.00557997,131.89,131.83,26.548]
[1725271266655,28.00557997,131.91,131.83,18.9625]
[1725271267163,28.00557997,131.91,131.84,7.5849]
[1725271267373,35.58647997,131.91,131.84,7.5849]
[1725271267950,28.00557997,131.89,131.84,7.5849]
[1725271268168,28.00557997,131.89,131.83,26.5479]
[1725271268346,28.00557997,131.87,131.82,7.586]
[1725271269560,28.00557997,131.85,131.81,0.8485374]
[1725271270858,15.0385,131.86,131.81,0.8485374]
[1725271271049,28.00557997,131.89,131.81,0.8485374]
[1725271271250,62.30359222,131.93,131.89,7.5816]
[1725271271251,28.00557997,131.92,131.89,7.5816]
[1725271271478,15.0629,131.95,131.86,36.76049222]
[1725271271645,34.53227997,131.97,131.86,36.76049222]
[1725271271843,34.53227997,131.97,131.91,26.5318]
[1725271272045,28.00557997,131.94,131.88,18.9565]
[1725271272276,35.58517997,131.94,131.84,16.556]
[1725271272769,6.5267,131.97,131.85,18.9609]
[1725271272770,28.00557997,131.92,131.85,18.9609]
[1725271273162,28.00557997,131.92,131.82,6.1021]
[1725271273163,28.00557997,131.88,131.83,7.5854]
[1725271273549,6.5267,131.89,131.83,7.5854]
[1725271273969,6.5267,131.89,131.84,7.5846]
[1725271274268,6.5267,131.89,131.82,18.9652]
[1725271274269,28.00557997,131.87,131.82,18.9652]
[1725271274647,28.00557997,131.87,131.82,26.5512]
[1725271275149,28.00557997,131.87,131.81,8.4351374]
[1725271275870,28.00557997,131.85,131.81,8.4351374]
[1725271276071,28.00557997,131.87,131.81,8.4351374]
[1725271276281,28.00557997,131.85,131.81,8.4351374]
[1725271276569,28.00557997,131.85,131.81,0.8485374]
[1725271277159,28.00557997,131.83,131.81,0.8485374]
[1725271277678,16.1595,131.84,131.81,0.8485374]
[1725271277872,28.00557997,131.83,131.81,0.8485374]
[1725271278963,23.7446,131.84,131.81,0.8485374]
[1725271278964,16.1595,131.84,131.81,0.8485374]
[1725271279555,36.76049222,131.87,131.81,0.8485374]
[1725271279556,28.00557997,131.87,131.81,0.8485374]
[1725271279759,28.00557997,131.87,131.81,8.4350374]
[1725271279962,28.00557997,131.87,131.82,7.5857]
[1725271280358,50.48847997,131.89,131.83,7.5849]
[1725271280546,28.00557997,131.91,131.81,0.8485374]
[1725271280752,28.00557997,131.91,131.86,7.5833]
[1725271281176,28.00557997,131.91,131.85,18.9598]
[1725271281672,28.00557997,131.91,131.85,26.5436]
[1725271281978,6.4009,131.92,131.86,7.5835]
[1725271282273,44.57317997,131.93,131.87,18.957]
[1725271282478,44.57317997,131.93,131.88,7.5821]
[1725271282770,52.15297997,131.93,131.87,18.957]
[1725271282980,44.57317997,131.93,131.87,18.957]
[1725271283163,44.57317997,131.93,131.87,26.5397]
[1725271283363,44.57317997,131.93,131.83,18.9624]
[1725271283364,28.00557997,131.9,131.83,18.9624]
[1725271283560,28.00557997,131.9,131.81,0.8485374]
[1725271283561,44.57317997,131.93,131.81,0.8485374]
[1725271283871,16.5676,131.93,131.86,18.9592]
[1725271284265,16.5676,131.93,131.88,7.5825]
[1725271284573,44.57317997,131.93,131.88,7.5825]
[1725271284773,16.5676,131.93,131.88,7.5825]
[1725271284974,16.5676,131.93,131.87,7.5831]
[1725271284975,44.57317997,131.93,131.87,7.5831]
[1725271285271,52.15317997,131.93,131.86,26.5429]
[1725271285474,35.58647997,131.91,131.83,18.9635]
[1725271286171,28.00557997,131.91,131.88,7.5826]
[1725271286386,28.00557997,131.91,131.87,7.5831]
[1725271286674,28.00557997,131.91,131.82,18.964]
[1725271287349,35.58657997,131.91,131.84,7.5844]
[1725271287652,28.00557997,131.91,131.86,7.5835]
[1725271288161,28.00557997,131.91,131.84,18.9611]
[1725271288162,16.5676,131.93,131.84,36.76049222]
[1725271288366,16.5676,131.93,131.9,7.5813]
[1725271288546,6.3666,131.95,131.9,7.5813]
[1725271288748,6.3666,131.95,131.92,7.5802]
[1725271288952,16.5638,131.97,131.93,7.5797]
[1725271289184,16.5638,132.01,131.9,36.76049222]
[1725271289482,16.5638,132.01,131.91,20.0]
[1725271289686,16.5638,132.01,131.97,7.5774]
[1725271289984,28.00557997,131.98,131.92,18.9508]
[1725271290149,35.58247997,131.98,131.92,26.5311]
[1725271290763,28.00557997,131.98,131.88,18.9553]
[1725271290977,28.00557997,131.98,131.89,20.0]
[1725271291182,28.00557997,131.98,131.92,7.5801]
[1725271291963,16.5638,132.01,131.98,7.5767]
[1725271292165,6.3619,132.02,131.98,7.5766]
[1725271292372,28.00557997,132.04,131.98,7.5766]
[1725271292880,30.2192,132.05,131.93,36.76049222]
[1725271292881,22.6463,132.05,131.96,36.76049222]
[1725271293108,34.33207997,132.09,131.99,37.8798]
[1725271293259,16.5275,132.1,132.03,18.9345]
[1725271293656,44.53307997,132.1,132.03,18.9345]
[1725271294374,44.53307997,132.1,131.97,45.0]
[1725271294559,44.53307997,132.1,131.98,20.0]
[1725271294760,16.5275,132.1,132.02,18.9355]
[1725271294974,44.53307997,132.1,132.03,7.5736]
[1725271295559,44.18019904,132.16,132.03,7.5736]
[1725271295560,15.8487,132.17,132.1,7.5697]
[1725271295765,28.00557997,132.14,132.08,18.9272]
[1725271296174,28.00557997,132.1,132.04,18.9325]
[1725271296359,28.00557997,132.1,132.04,26.5056]
[1725271296682,7.5694,132.12,132.04,18.9325]
[1725271296683,28.00557997,132.12,132.04,18.9325]
[1725271297080,28.00557997,132.12,132.06,7.5723]
[1725271297257,44.18019904,132.16,132.04,18.9325]
[1725271297258,28.00557997,132.1,132.04,18.9325]
[1725271298084,28.00557997,132.12,132.07,7.5716]
[1725271298382,28.00557997,132.12,132.06,7.5722]
[1725271298582,28.00557997,132.09,132.04,26.5057]
[1725271298762,28.00557997,132.11,132.04,18.9325]
[1725271298964,28.00557997,132.13,132.04,18.9325]
[1725271299179,28.00557997,132.15,132.07,18.9286]
[1725271299367,51.42027997,132.17,132.09,7.57]
[1725271299562,28.00557997,132.15,132.09,7.57]
[1725271300075,51.42027997,132.17,132.09,7.57]
[1725271300287,15.8487,132.17,132.1,18.9249]
[1725271300963,28.00557997,132.21,132.15,7.5671]
[1725271301159,28.00557997,132.21,132.13,18.9204]
[1725271301160,28.00557997,132.21,132.16,18.9158]
[1725271301358,28.00557997,132.19,132.08,6.6564]
[1725271301563,28.00557997,132.19,132.09,20.0]
[1725271301762,28.00557997,132.19,132.13,7.5677]
[1725271302370,28.00557997,132.21,132.12,18.9208]
[1725271302678,28.00557997,132.21,132.16,7.5665]
[1725271302988,22.6263,132.22,132.17,7.5659]
[1725271303162,22.6263,132.22,132.15,18.9177]
[1725271303163,16.3779,132.22,132.15,18.9177]
[1725271303676,16.3779,132.22,132.17,7.5657]
[1725271304197,28.00557997,132.25,132.19,7.5648]
[1725271304494,28.00557997,132.25,132.2,7.5641]
[1725271305666,0.8485374,132.26,132.25,7.5614]
[1725271305971,0.8485374,132.26,132.25,81.44159904]
[1725271307388,28.00557997,132.37,132.25,81.44159904]
[1725271307389,28.00557997,132.37,132.3,18.8953]
[1725271308273,28.00557997,132.37,132.32,7.557]
[1725271308679,28.00557997,132.37,132.3,18.8953]
[1725271309181,28.00557997,132.37,132.32,7.5572]
[1725271309387,28.85411737,132.39,132.33,18.8919]
[1725271309700,0.8485374,132.39,132.36,18.8876]
[1725271309878,0.3485374,132.39,132.37,7.5545]
[1725271310272,0.3485374,132.39,132.36,18.8876]
[1725271310598,28.35411737,132.39,132.36,18.8876]
[1725271310780,0.3485374,132.39,132.36,18.8876]
[1725271311398,0.3485374,132.39,132.31,7.5577]
[1725271311399,28.00557997,132.36,132.31,7.5577]
[1725271311591,28.00557997,132.36,132.3,18.8951]
[1725271311892,28.35411737,132.39,132.32,7.5573]
[1725271312090,28.00557997,132.36,132.31,7.5579]
[1725271312669,28.00557997,132.36,132.3,18.8951]
[1725271312869,72.18577901,132.38,132.26,18.9009]
[1725271313069,44.18019904,132.38,132.23,37.8101]
[1725271313371,7.5546,132.37,132.3,7.5585]
[1725271314188,7.9025374,132.39,132.32,7.5572]
[1725271314470,0.3485374,132.39,132.33,7.5567]
[1725271314870,28.35411737,132.39,132.33,7.5563]
[1725271315070,0.3485374,132.39,132.33,7.5563]
[1725271315270,0.3485374,132.39,132.34,7.5559]
[1725271315567,0.3485374,132.39,132.35,7.5556]
[1725271315771,0.3485374,132.39,132.33,7.5563]
[1725271316001,0.3485374,132.39,132.32,18.8934]
[1725271316002,28.00557997,132.37,132.32,18.8934]
[1725271316198,7.5542,132.38,132.32,18.8934]
[1725271316380,28.35411737,132.39,132.32,18.8934]
[1725271316700,0.3485374,132.39,132.32,18.8934]
[1725271317196,0.3485374,132.39,132.36,7.5551]
[1725271317393,0.3485374,132.39,132.36,7.5546]
[1725271317570,0.3485374,132.39,132.36,7.5551]
[1725271317899,28.85411737,132.52,132.44,7.55]
[1725271318099,28.85411737,132.52,132.44,18.8757]
[1725271318100,36.40041737,132.52,132.44,18.8757]
[1725271318489,28.00557997,132.5,132.44,18.8757]
[1725271318682,28.00557997,132.49,132.42,7.5513]
[1725271318889,28.00557997,132.49,132.43,7.5511]
[1725271319199,0.8485374,132.52,132.45,7.5494]
[1725271319200,28.85411737,132.52,132.45,7.5494]
[1725271319494,28.85411737,132.52,132.46,7.5494]
[1725271319696,28.00557997,132.5,132.44,18.8754]
[1725271320386,8.3946374,132.52,132.45,7.5498]
[1725271320387,28.00557997,132.51,132.45,7.5498]
[1725271320590,28.00557997,132.51,132.44,26.4255]
[1725271320802,28.00557997,132.51,132.44,18.8754]
[1725271320975,28.00557997,132.49,132.44,18.8754]
[1725271321176,28.00557997,132.51,132.44,18.8754]
[1725271321372,7.5474,132.5,132.44,18.8754]
[1725271321599,28.00557997,132.51,132.44,18.8754]
[1725271321797,0.8485374,132.52,132.44,18.8754]
[1725271322005,0.8485374,132.52,132.46,6.4867]
[1725271322180,0.8485374,132.52,132.51,7.5466]
[1725271322981,7.541,132.61,132.53,18.863]
[1725271323180,0.8485374,132.65,132.51,44.18019904]
[1725271323482,0.8485374,132.65,132.48,45.7906]
[1725271323483,0.8485374,132.65,132.55,18.86]
[1725271323677,0.8485374,132.65,132.57,50.56829904]
[1725271323991,0.8485374,132.65,132.61,26.3918]
[1725271324180,44.18019904,132.77,132.58,102.7117]
[1725271324181,28.005579,132.82,132.65,9.7]
[1725271324384,7.5273,132.85,132.74,7.5332]
[1725271324584,7.5273,132.85,132.73,18.8344]
[1725271324585,28.00557997,132.85,132.73,18.8344]
[1725271324800,8.3795374,132.79,132.68,26.3785]
[1725271325085,8.3795374,132.79,132.55,50.0]
[1725271325086,7.5352,132.71,132.6,7.5411]
[1725271325279,7.5337,132.74,132.59,49.18019904]
[1725271325483,7.5363,132.69,132.6,72.5412]
[1725271325685,28.00557997,132.74,132.6,20.0]
[1725271325903,7.5361,132.7,132.6,20.0]
[1725271326102,63.85653644,132.79,132.54,44.18019904]
[1725271326103,28.00557997,132.67,132.54,44.18019904]
[1725271326279,28.00557997,132.67,132.52,18.8641]
[1725271326280,28.00557997,132.69,132.52,18.8641]
[1725271326479,21.5854,132.71,132.57,44.18019904]
[1725271326711,23.0779,132.71,132.6,44.18019904]
[1725271327079,7.5388,132.65,132.51,11.2688898]
[1725271327273,7.54,132.63,132.54,44.18019904]
[1725271327508,28.00557997,132.64,132.51,44.18019904]
[1725271327729,7.5418,132.6,132.5,6.2324]
[1725271327896,28.00557997,132.6,132.5,6.2324]
[1725271328082,28.00557997,132.56,132.4,15.6367]
[1725271328280,44.18019904,132.61,132.41,45.6870876]
[1725271328281,28.00557997,132.54,132.41,45.6870876]
[1725271328493,7.5458,132.53,132.42,1.50677475]
[1725271328714,7.5458,132.53,132.44,44.18019904]
[1725271328905,7.5444,132.55,132.44,44.18019904]
[1725271329199,7.5428,132.58,132.5,44.18019904]
[1725271329503,7.5417,132.6,132.5,44.18019904]
[1725271329805,15.4174,132.66,132.5,44.18019904]
[1725271329998,13.12269997,132.63,132.5,44.18019904]
[1725271330203,19.36459997,132.65,132.51,1.50746533]
[1725271330393,19.36459997,132.65,132.52,1.50760334]
[1725271330799,19.36459997,132.65,132.5,44.18019904]
[1725271330995,13.12269997,132.63,132.52,18.8637]
[1725271331308,7.5428,132.58,132.47,18.8715]
[1725271331477,13.12269997,132.59,132.48,1.50887387]
[1725271331682,13.12269997,132.54,132.42,18.8786]
[1725271331877,7.5468,132.51,132.42,26.43]
[1725271332603,13.12269997,132.54,132.42,18.8786]
[1725271332808,13.12269997,132.52,132.42,18.8786]
[1725271333310,13.12269997,132.52,132.38,7.5538]
[1725271333311,13.12269997,132.49,132.38,7.5538]
[1725271333513,7.5513,132.43,132.37,0.5443288]
[1725271333713,13.12269997,132.47,132.37,0.5443288]
[1725271333714,7.5501,132.45,132.37,0.5443288]
[1725271333890,13.12269997,132.47,132.37,0.5443288]
[1725271334085,7.5498,132.46,132.37,0.5443288]
[1725271334398,13.12269997,132.49,132.38,7.5536]
[1725271334716,50.78929904,132.52,132.37,8.0986288]
[1725271334717,7.5496,132.46,132.37,8.0986288]
[1725271335981,7.5481,132.49,132.4,7.5526]
[1725271336181,7.5481,132.49,132.41,7.5521]
[1725271336486,63.81929901,132.58,132.41,44.18019904]
[1725271336789,7.5462,132.52,132.42,9.05956566]
[1725271336982,7.5478,132.49,132.42,1.50816566]
[1725271337202,7.5478,132.49,132.38,44.18019904]
[1725271337203,13.12269997,132.49,132.37,0.5443288]
[1725271337599,13.12269997,132.47,132.37,19.4303288]
[1725271337799,42.7254,132.54,132.37,0.5443288]
[1725271337800,7.5518,132.42,132.37,0.5443288]
[1725271338004,7.5524,132.41,132.37,0.5443288]
[1725271338407,6.3267,132.46,132.37,0.5443288]
[1725271338589,7.551,132.44,132.37,0.5443288]
[1725271338788,13.12269997,132.45,132.37,0.5443288]
[1725271338988,7.5518,132.42,132.37,0.5443288]
[1725271339201,6.3267,132.46,132.37,0.5443288]
[1725271339202,7.5524,132.41,132.37,0.5443288]
[1725271339595,6.3267,132.46,132.37,0.5443288]
[1725271339596,20.67619997,132.39,132.37,0.5443288]
[1725271340295,13.12269997,132.35,132.25,26.464]
[1725271340712,20.68029997,132.32,132.23,7.5623]
[1725271340922,7.5576,132.32,132.24,7.5618]
[1725271341100,7.5567,132.34,132.24,18.9037]
[1725271341600,57.30289901,132.4,132.27,26.4597]
[1725271341912,13.12269997,132.38,132.28,7.5596]
[1725271342212,13.12269997,132.37,132.28,7.5596]
[1725271342415,13.12269997,132.39,132.28,7.5596]
[1725271342624,7.5533,132.4,132.3,18.8953]
[1725271343116,7.5535,132.39,132.32,7.5571]
[1725271343419,7.5543,132.38,132.3,18.8953]
[1725271343719,7.5543,132.38,132.27,44.18019904]
[1725271343720,7.5559,132.35,132.27,7.5601]
[1725271344097,13.12269997,132.36,132.26,18.9015]
[1725271344316,13.12269997,132.34,132.26,18.9015]
[1725271344494,7.5564,132.34,132.27,7.5602]
[1725271345295,13.12269997,132.39,132.29,18.8971]
[1725271345497,7.5541,132.38,132.3,7.5585]
[1725271345697,13.12269997,132.39,132.3,7.5585]
[1725271346017,7.5552,132.36,132.29,7.5589]
[1725271346222,13.12269997,132.35,132.22,16.11637957]
[1725271346516,7.5581,132.31,132.24,26.4661]
[1725271346723,7.5581,132.31,132.24,18.9042]
[1725271346914,7.5575,132.32,132.24,18.9042]
[1725271347122,7.5575,132.32,132.25,7.5613]
[1725271347499,7.5567,132.34,132.27,7.5602]
[1725271347699,7.5569,132.33,132.25,7.5609]
[1725271348005,7.5574,132.32,132.25,7.5609]
[1725271348496,7.557,132.33,132.26,9.06845771]
[1725271348699,7.5569,132.33,132.25,7.5612]
[1725271349116,57.30289901,132.35,132.24,18.9042]
[1725271349117,13.12269997,132.32,132.24,18.9042]